bitfinex-derivatives/quotes_SOLF0:USTF0_20251107
["timestamp","ask_amount","ask_price","bid_price","bid_amount"]
[1762529034020,0.04185635,154.31,154.28,2.95]
[1762529034525,0.04185635,154.31,154.26,8.7884]
[1762529034723,0.04879923,154.3,154.26,2.95]
[1762529035931,0.04879923,154.3,154.21,2.95]
[1762529036223,0.04911951,154.27,154.21,2.95]
[1762529036626,0.04911951,154.27,154.26,2.95]
[1762529037025,3.24,154.38,154.26,2.95]
[1762529037420,5.8355,154.35,154.26,2.95]
[1762529037616,3.24,154.38,154.26,2.95]
[1762529038016,3.24,154.33,154.3,0.0422366]
[1762529038225,0.04186695,154.33,154.3,0.04087522]
[1762529038529,5.8367,154.32,154.3,0.04087522]
[1762529038719,3.24,154.31,154.21,64.95]
[1762529038915,3.24,154.31,154.22,2.95]
[1762529039130,3.24,154.31,154.24,5.8393]
[1762529039319,3.24,154.31,154.22,2.95]
[1762529039518,5.8387,154.27,154.22,2.95]
[1762529039726,3.24,154.31,154.21,2.95]
[1762529039925,3.28109624,154.26,154.23,0.02662895]
[1762529040125,0.04762025,154.26,154.23,0.02662895]
[1762529040319,0.04762025,154.26,154.23,2.97662895]
[1762529040520,0.04762025,154.26,154.23,0.02662895]
[1762529040725,0.04762025,154.26,154.23,2.97662895]
[1762529041133,0.04762025,154.26,154.23,0.02662895]
[1762529041525,3.24,154.37,154.23,2.97662895]
[1762529041730,3.24,154.34,154.23,2.95]
[1762529042027,3.24,154.34,154.19,2.95]
[1762529042232,3.24,154.34,154.25,8.7889]
[1762529042627,5.88131712,154.31,154.28,0.04941614]
[1762529043027,0.04431712,154.31,154.28,0.04941614]
[1762529043328,3.28431712,154.31,154.28,0.04941614]
[1762529043522,4.54,154.3,154.19,62.0]
[1762529043719,5.8416,154.19,154.14,2.95]
[1762529044132,3.24,154.24,154.14,2.95]
[1762529044330,3.24,154.24,154.06,19.73986485]
[1762529044331,3.24,154.24,154.09,2.95]
[1762529044525,0.04305806,154.18,154.15,0.02483306]
[1762529044727,0.04305806,154.18,154.15,2.97483306]
[1762529045032,0.04305806,154.18,154.15,0.02483306]
[1762529045233,5.8424,154.17,154.15,0.02483306]
[1762529045434,0.04305806,154.18,154.15,0.02483306]
[1762529045633,0.04305806,154.18,154.15,3.00483306]
[1762529046235,3.12305806,154.18,154.15,0.02483306]
[1762529046432,0.04305806,154.18,154.15,3.00483306]
[1762529046936,0.04305806,154.18,154.15,0.02483306]
[1762529047524,8.9224,154.17,154.15,0.02483306]
[1762529047834,3.08,154.16,154.05,64.98]
[1762529048231,3.08,154.16,154.05,2.98]
[1762529048428,3.08,154.2,154.05,2.98]
[1762529048631,5.8443,154.12,154.01,2.98]
[1762529048930,11.6835,154.19,154.01,2.98]
[1762529048931,0.04089458,154.08,154.01,2.98]
[1762529049130,0.04725732,154.06,154.04,2.98]
[1762529049436,8.9239,154.13,154.04,2.98]
[1762529049437,0.04936626,154.07,154.04,2.98]
[1762529049637,0.04936626,154.07,154.04,8.8267]
[1762529049833,0.04936626,154.07,154.05,2.98]
[1762529050033,0.04936626,154.07,154.01,12.57741802]
[1762529050338,0.04936626,154.07,154.03,2.98]
[1762529050731,0.04936626,154.07,154.06,2.98]
[1762529051124,3.08,154.18,154.06,2.98]
[1762529051323,5.8432,154.15,154.06,2.98]
[1762529051824,5.8423,154.17,154.06,2.98]
[1762529052030,0.04284887,154.13,154.1,0.04371368]
[1762529052231,3.12284887,154.13,154.1,0.04371368]
[1762529052435,8.9243,154.12,154.1,0.04371368]
[1762529052732,0.04284887,154.13,154.1,0.04371368]
[1762529053234,0.04284887,154.13,154.1,3.02371368]
[1762529053443,0.04284887,154.13,154.1,0.04371368]
[1762529053838,0.04284887,154.13,154.1,3.02371368]
[1762529054034,0.04284887,154.13,154.1,0.04371368]
[1762529054226,0.04284887,154.13,154.1,3.02371368]
[1762529054427,3.08,154.23,154.12,2.98]
[1762529054931,3.08,154.28,154.13,2.98]
[1762529055233,5.90817779,154.34,154.22,2.98]
[1762529055234,8.7632141,154.34,154.22,2.98]
[1762529055435,3.08,154.33,154.16,8.6632141]
[1762529055645,3.08,154.3,154.17,2.98]
[1762529056031,3.08,154.27,154.13,2.98]
[1762529056740,0.04312944,154.22,154.18,0.0452791]
[1762529057237,0.04312944,154.22,154.18,3.0252791]
[1762529057738,30.87008269,154.34,154.18,3.0252791]
[1762529057739,3.08,154.31,154.18,3.0252791]
[1762529057934,3.08,154.31,154.18,2.98]
[1762529058332,3.08,154.28,154.12,5.6832141]
[1762529058537,5.84,154.23,154.14,2.98]
[1762529058843,0.04156451,154.2,154.17,0.04096389]
[1762529059035,0.04749572,154.2,154.17,0.04607737]
[1762529060433,5.8387,154.27,154.17,0.04607737]
[1762529060434,3.08,154.31,154.17,3.02607737]
[1762529060632,3.08,154.31,154.17,2.98]
[1762529061037,3.08,154.31,154.18,62.0]
[1762529061637,0.0490491,154.26,154.23,0.04828755]
[1762529062548,0.0490491,154.26,154.23,3.02828755]
[1762529063146,0.0490491,154.26,154.23,0.04828755]
[1762529063643,3.1290491,154.26,154.23,0.04828755]
[1762529064351,3.1290491,154.26,154.18,2.98]
[1762529064352,0.0490491,154.26,154.18,2.98]
[1762529064745,0.0490491,154.26,154.21,2.98]
[1762529064944,8.9174,154.3,154.21,2.98]
[1762529064945,3.08,154.3,154.21,2.98]
[1762529065146,5.6832141,154.35,154.21,2.98]
[1762529065456,0.04256588,154.27,154.24,3.02955767]
[1762529065748,3.08,154.37,154.26,2.98]
[1762529066140,71.2,154.43,154.27,2.98]
[1762529066141,3.08,154.42,154.27,2.98]
[1762529066340,3.08,154.42,154.3,5.837]
[1762529066552,3.08,154.39,154.27,2.98]
[1762529066743,3.08,154.39,154.31,0.0453514]
[1762529066943,3.12223647,154.35,154.31,0.0453514]
[1762529067349,5.8364,154.33,154.31,0.0453514]
[1762529067751,3.08,154.32,154.22,2.98]
[1762529067942,3.08,154.3,154.18,2.98]
[1762529068345,5.8397,154.24,154.18,2.98]
[1762529068539,3.08,154.3,154.18,2.98]
[1762529068740,0.04953165,154.26,154.22,0.0427768]
[1762529068945,5.8397,154.24,154.22,0.0427768]
[1762529069149,3.12953165,154.26,154.22,0.0427768]
[1762529069345,3.08,154.25,154.14,8.6632141]
[1762529069554,3.08,154.25,154.14,2.98]
[1762529069845,3.08,154.24,154.05,28.78]
[1762529070050,3.08,154.24,154.09,2.98]
[1762529070446,0.04711063,154.18,154.15,0.04446927]
[1762529071453,0.04711063,154.18,154.15,3.02446927]
[1762529071747,3.12711063,154.18,154.15,0.04446927]
[1762529071950,5.8423,154.17,154.15,0.04446927]
[1762529072254,3.12711063,154.18,154.15,0.04446927]
[1762529072452,0.04711063,154.18,154.15,0.04446927]
[1762529072754,8.9223,154.17,154.15,0.04446927]
[1762529072951,3.08,154.16,154.15,0.04446927]
[1762529073153,3.08,154.16,154.08,5.6832141]
[1762529074047,3.08,154.16,154.06,5.6832141]
[1762529074252,3.08,154.16,154.04,5.6832141]
[1762529074443,0.04822847,154.13,154.04,5.6832141]
[1762529074643,3.12822847,154.13,154.04,8.6632141]
[1762529075058,3.15,154.12,154.04,5.6832141]
[1762529075452,0.04848099,154.1,154.04,5.6832141]
[1762529075649,0.04848099,154.1,154.04,14.5800141]
[1762529076352,0.04848099,154.1,154.05,8.8965]
[1762529076552,0.04848099,154.1,154.06,3.05]
[1762529077257,0.04848099,154.1,154.04,5.6832141]
[1762529077459,0.04848099,154.1,154.04,11.5300141]
[1762529077760,0.04848099,154.1,154.05,3.05]
[1762529077959,0.04848099,154.1,154.06,8.7332141]
[1762529078255,0.04848099,154.1,154.07,3.05]
[1762529079368,3.19848099,154.1,154.06,5.6832141]
[1762529079554,3.19848099,154.1,154.03,8.7332141]
[1762529079756,5.8454,154.09,154.03,8.7332141]
[1762529079957,3.19848099,154.1,154.03,8.7332141]
[1762529080357,3.19848099,154.1,154.03,14.5804141]
[1762529080659,3.19848099,154.1,154.03,8.7332141]
[1762529080858,0.04848099,154.1,154.03,8.7332141]
[1762529081060,0.04848099,154.1,153.99,62.0]
[1762529081061,0.04848099,154.1,154.04,3.17]
[1762529081356,0.04153045,154.09,154.06,3.17]
[1762529081658,0.04628248,154.09,154.06,8.8532141]
[1762529081861,0.04628248,154.09,154.07,3.17]
[1762529082049,3.26,154.18,154.07,3.17]
[1762529082562,3.26,154.18,154.09,8.8532141]
[1762529082765,3.26,154.23,154.12,5.6832141]
[1762529083056,0.04865964,154.19,154.16,0.04628248]
[1762529083759,3.30865964,154.19,154.16,0.04628248]
[1762529083949,0.04865964,154.19,154.16,0.04628248]
[1762529084359,0.04865964,154.19,154.16,5.72949658]
[1762529084556,0.04865964,154.19,154.17,3.17]
[1762529084764,3.26,154.28,154.17,3.17]
[1762529085254,3.26,154.28,154.17,9.0119]
[1762529085770,0.04102645,154.24,154.21,0.04393528]
[1762529086462,3.26,154.32,154.23,3.17]
[1762529086760,3.26,154.32,154.22,5.6832141]
[1762529087151,3.26,154.32,154.21,3.17]
[1762529087352,3.26,154.32,154.25,0.04258973]
[1762529087557,3.26,154.27,154.25,0.04258973]
[1762529087766,3.30488336,154.28,154.24,0.04880663]
[1762529088068,0.04875736,154.28,154.24,0.04880663]
[1762529088257,3.26,154.27,154.24,0.04880663]
[1762529088758,3.26,154.21,154.11,5.6832141]
[1762529088958,3.26,154.21,154.09,3.17]
[1762529089153,3.26,154.21,154.11,5.8441]
[1762529089358,5.842,154.18,154.11,5.8441]
[1762529089568,0.04409654,154.16,154.13,0.0484889]
[1762529089759,0.04409654,154.16,154.13,3.2184889]
[1762529090063,0.04409654,154.16,154.13,0.0484889]
[1762529090270,0.04409654,154.16,154.13,3.2184889]
[1762529091560,0.04409654,154.16,154.13,0.0484889]
[1762529092878,3.26,154.15,154.06,5.6832141]
[1762529093163,3.26,154.15,154.06,3.17]
[1762529093376,5.8434,154.14,154.06,3.17]
[1762529093763,3.26,154.15,154.08,5.6832141]
[1762529093963,0.04920962,154.13,154.1,3.20867304]
[1762529094165,0.04495078,154.13,154.1,3.20867304]
[1762529095982,3.26,154.26,154.12,3.17]
[1762529096175,3.26,154.26,154.16,5.6832141]
[1762529096374,3.26,154.26,154.16,14.6955141]
[1762529096782,3.26,154.31,154.19,3.17]
[1762529097182,3.26,154.26,154.23,0.0479345]
[1762529097483,0.04087675,154.27,154.23,0.04919959]
[1762529098480,5.839,154.26,154.23,0.04919959]
[1762529098681,3.30087675,154.27,154.23,0.04919959]
[1762529098885,9.0993,154.25,154.23,0.04919959]
[1762529099185,3.26,154.24,154.23,0.04919959]
[1762529099381,9.0993,154.25,154.23,0.04919959]
[1762529099574,3.26,154.24,154.23,0.04919959]
[1762529099982,3.26,154.24,154.17,5.6832141]
[1762529099983,4.56,154.24,154.15,3.17]
[1762529100181,3.26,154.24,154.15,3.17]
[1762529101090,0.04909959,154.21,154.18,0.03442423]
[1762529101586,0.04909959,154.21,154.18,3.20442423]
[1762529101884,3.26,154.29,154.18,0.03442423]
[1762529102086,3.26,154.29,154.18,3.17]
[1762529102284,3.26,154.29,154.21,3.17]
[1762529102487,3.26,154.29,154.2,5.6832141]
[1762529102682,5.8408,154.21,154.17,8.8532141]
[1762529102985,0.04261384,154.21,154.17,8.89831175]
[1762529103390,0.04261384,154.21,154.18,3.17]
[1762529103790,0.04261384,154.21,154.18,9.0116]
[1762529103985,0.04261384,154.21,154.19,3.17]
[1762529104582,3.26,154.31,154.19,9.0112]
[1762529104787,3.26,154.31,154.21,3.17]
[1762529105091,3.07,154.38,154.24,2.98]
[1762529105487,3.07,154.38,154.23,5.6832141]
[1762529105786,0.04909989,154.32,154.29,3.02720594]
[1762529106197,0.04909989,154.32,154.29,0.04720594]
[1762529106384,0.04909989,154.32,154.29,3.02720594]
[1762529106585,5.88569989,154.32,154.29,0.04720594]
[1762529106793,0.04909989,154.32,154.29,0.04720594]
[1762529106987,3.11909989,154.32,154.29,0.04720594]
[1762529107288,0.04909989,154.32,154.3,2.98]
[1762529107894,0.04909989,154.32,154.29,0.04720594]
[1762529108092,0.04909989,154.32,154.29,3.02720594]
[1762529108385,22.71591892,154.43,154.3,2.98]
[1762529108581,3.07,154.42,154.3,2.98]
[1762529108791,3.07,154.42,154.25,2.98]
[1762529108792,3.07,154.39,154.25,2.98]
[1762529109189,5.6832141,154.39,154.25,2.98]
[1762529109391,3.07,154.38,154.21,5.6832141]
[1762529109590,3.07,154.35,154.21,2.98]
[1762529109888,3.07,154.3,154.21,2.98]
[1762529110395,3.07,154.3,154.16,2.98]
[1762529110596,3.07,154.29,154.16,2.98]
[1762529110790,0.04774337,154.24,154.21,0.04686165]
[1762529110996,3.07,154.23,154.21,0.04686165]
[1762529111297,3.07,154.23,154.12,2.98]
[1762529111298,5.8413,154.2,154.13,2.98]
[1762529111492,3.07,154.26,154.13,2.98]
[1762529111792,5.8405,154.22,154.14,2.98]
[1762529111989,3.07,154.26,154.14,2.98]
[1762529112191,3.07,154.21,154.18,0.04209655]
[1762529112387,3.07,154.21,154.1,2.98]
[1762529112588,3.07,154.21,154.12,2.98]
[1762529112897,5.8403,154.22,154.13,2.98]
[1762529113196,3.07,154.29,154.15,2.98]
[1762529113386,0.04590915,154.24,154.2,3.01724009]
[1762529113583,3.07,154.29,154.2,3.01724009]
[1762529113788,0.04149808,154.24,154.2,3.01724009]
[1762529114089,3.07,154.33,154.2,8.70045419]
[1762529114390,3.07,154.33,154.23,5.6832141]
[1762529114391,5.8371,154.31,154.23,5.6832141]
[1762529114594,3.07,154.33,154.2,8.6632141]
[1762529114892,5.8384,154.28,154.2,2.98]
[1762529115192,0.04140315,154.26,154.23,2.98]
[1762529115396,5.8352,154.36,154.24,2.98]
[1762529115583,5.8352,154.36,154.23,5.72993624]
[1762529115584,3.07,154.41,154.29,2.98]
[1762529116495,5.8343,154.38,154.3,8.817]
[1762529116690,0.04119964,154.36,154.3,2.98]
[1762529116994,0.04119964,154.36,154.32,0.04411728]
[1762529117291,0.04119964,154.36,154.32,3.02411728]
[1762529118501,3.07,154.46,154.32,3.02411728]
[1762529118793,3.07,154.46,154.32,2.98]
[1762529119094,3.07,154.46,154.33,2.98]
[1762529119288,0.0425239,154.41,154.38,3.02560763]
[1762529119490,12.02167166,154.56,154.38,3.02560763]
[1762529119491,3.07,154.5,154.39,2.98]
[1762529120601,0.04281871,154.46,154.43,0.0454323]
[1762529120797,3.11281871,154.46,154.43,0.0454323]
[1762529120993,0.04281871,154.46,154.33,2.98]
[1762529121295,3.07,154.51,154.33,2.98]
[1762529121596,5.8334,154.41,154.33,2.98]
[1762529121796,3.07,154.45,154.33,2.98]
[1762529121991,0.04307861,154.41,154.37,0.04823797]
[1762529122803,1.3,154.4,154.26,2.98]
[1762529123003,3.07,154.41,154.3,2.98]
[1762529123203,3.07,154.48,154.3,2.98]
[1762529123692,3.07,154.45,154.32,2.98]
[1762529123895,0.04741761,154.41,154.37,0.04373604]
[1762529124195,5.8338,154.4,154.37,0.04373604]
[1762529124401,0.04741761,154.41,154.37,3.02373604]
[1762529125390,0.04741761,154.41,154.37,8.85833604]
[1762529125591,0.04741761,154.41,154.37,3.02373604]
[1762529126196,0.04741761,154.41,154.37,0.04373604]
[1762529126397,3.11741761,154.41,154.37,0.04373604]
[1762529126599,0.04741761,154.41,154.37,3.02373604]
[1762529127302,0.04741761,154.41,154.37,0.04373604]
[1762529128000,0.04741761,154.41,154.37,3.02373604]
[1762529129508,0.04741761,154.41,154.37,0.04373604]
[1762529129895,3.11741761,154.41,154.37,0.04373604]
[1762529130294,0.04741761,154.41,154.37,3.02373604]
[1762529130698,3.11741761,154.41,154.37,0.04373604]
[1762529130902,0.04741761,154.41,154.37,0.04373604]
[1762529131500,0.04741761,154.41,154.37,3.02373604]
[1762529132010,0.04741761,154.41,154.4,2.98]
[1762529132407,3.07,154.5,154.4,2.98]
[1762529133100,3.07,154.5,154.36,5.8349]
[1762529133301,3.11308045,154.45,154.41,0.04227914]
[1762529133501,3.11144706,154.45,154.41,0.04860559]
[1762529134212,8.9025,154.43,154.41,0.04860559]
[1762529134706,5.832,154.44,154.41,0.04860559]
[1762529134907,3.11144706,154.45,154.41,0.04860559]
[1762529135297,3.21,154.42,154.41,0.04860559]
[1762529135809,5.8348,154.37,154.3,8.8771]
[1762529136112,3.21,154.41,154.3,3.04]
[1762529136814,0.04791524,154.37,154.34,0.04990825]
[1762529137410,3.25791524,154.37,154.34,0.04990825]
[1762529137609,0.04791524,154.37,154.34,3.08990825]
[1762529138312,3.21,154.45,154.34,3.08990825]
[1762529138506,3.21,154.45,154.34,3.04]
[1762529138708,5.8326,154.43,154.35,3.04]
[1762529138910,3.21,154.45,154.35,3.04]
[1762529139103,5.8322,154.44,154.35,3.04]
[1762529139310,5.8322,154.44,154.33,9.65119474]
[1762529139311,0.04482833,154.41,154.38,3.08792199]
[1762529139509,0.04931374,154.41,154.38,3.08554041]
[1762529140015,0.04931374,154.41,154.38,0.04554041]
[1762529140814,2.99,154.39,154.38,0.04554041]
[1762529141009,8.8238,154.4,154.38,0.04554041]
[1762529141413,2.99,154.39,154.38,0.04554041]
[1762529142113,2.99,154.39,154.29,12.68119474]
[1762529142114,4.29,154.39,154.29,12.68119474]
[1762529142315,4.53929319,154.42,154.3,3.03]
[1762529142509,2.99,154.44,154.32,5.8363]
[1762529142706,7.52929319,154.43,154.33,3.03]
[1762529142912,4.53929319,154.42,154.33,3.03]
[1762529143111,0.04210286,154.39,154.36,0.04587252]
[1762529143312,5.87610286,154.39,154.36,0.04587252]
[1762529143512,0.04210286,154.39,154.36,0.04587252]
[1762529143712,0.04210286,154.39,154.37,3.03]
[1762529143910,14.6517,154.48,154.37,3.03]
[1762529143911,4.53929319,154.46,154.37,3.03]
[1762529144117,2.99,154.46,154.37,3.03]
[1762529144315,5.8329,154.42,154.37,3.03]
[1762529144816,4.53929319,154.45,154.37,3.03]
[1762529145014,0.04188821,154.43,154.39,0.0440995]
[1762529145514,5.8329,154.42,154.39,0.0440995]
[1762529145710,0.04188821,154.43,154.39,0.0440995]
[1762529145917,4.53929319,154.5,154.42,3.03]
[1762529146116,4.53929319,154.52,154.42,3.03]
[1762529146315,4.53929319,154.51,154.42,3.03]
[1762529146619,4.53929319,154.52,154.42,3.03]
[1762529147018,0.04149673,154.49,154.46,3.03]
[1762529147210,4.53929319,154.57,154.46,3.03]
[1762529147410,4.53929319,154.58,154.46,3.03]
[1762529147615,4.53929319,154.58,154.48,8.8603]
[1762529147820,4.53929319,154.58,154.49,3.03]
[1762529148016,7.53984714,154.57,154.45,12.68119474]
[1762529148219,0.04809316,154.53,154.49,0.04634176]
[1762529148422,3.03418176,154.53,154.49,0.04723036]
[1762529149114,2.99,154.52,154.49,0.04723036]
[1762529149623,5.8296,154.51,154.49,0.04723036]
[1762529150719,2.99,154.5,154.49,0.04723036]
[1762529151020,8.8196,154.51,154.49,0.04723036]
[1762529151215,5.8296,154.51,154.49,0.04723036]
[1762529151519,5.87278176,154.53,154.49,0.04723036]
[1762529151821,0.04418176,154.53,154.49,0.04723036]
[1762529152016,3.03418176,154.53,154.49,0.04723036]
[1762529152221,4.59544332,154.53,154.49,3.07723036]
[1762529152419,0.04418176,154.53,154.49,3.07723036]
[1762529153009,0.04418176,154.53,154.5,3.03]
[1762529153421,2.99,154.6,154.5,3.03]
[1762529153617,7.54126156,154.59,154.5,3.03]
[1762529153818,5.8279,154.55,154.5,3.03]
[1762529154218,2.99,154.59,154.5,3.03]
[1762529154523,2.99,154.55,154.53,0.04554974]
[1762529154721,2.99,154.55,154.52,0.04690308]
[1762529154925,3.03512069,154.55,154.52,0.04690308]
[1762529155125,5.87312069,154.55,154.52,0.04690308]
[1762529155324,0.04512069,154.55,154.52,3.07690308]
[1762529155919,7.54126156,154.64,154.53,3.03]
[1762529156217,2.99,154.68,154.53,3.03]
[1762529156418,4.55126156,154.67,154.53,3.03]
[1762529156622,2.99,154.65,154.55,3.03]
[1762529156817,4.55126156,154.64,154.55,3.03]
[1762529157022,2.99,154.7,154.57,3.03]
[1762529157225,3.0366131,154.65,154.62,0.04445748]
[1762529157416,3.0366131,154.65,154.57,3.03]
[1762529157417,2.99,154.63,154.53,3.03]
[1762529157619,5.826,154.6,154.53,3.03]
[1762529158026,5.8265,154.59,154.53,3.03]
[1762529158224,4.55126156,154.62,154.53,3.03]
[1762529158225,2.99,154.63,154.53,3.03]
[1762529158426,2.99,154.67,154.53,3.03]
[1762529158627,0.04671512,154.6,154.57,3.03]
[1762529158832,0.04138594,154.6,154.57,3.07457173]
[1762529159125,11.6419,154.74,154.57,3.07457173]
[1762529159126,2.99,154.71,154.57,3.07457173]
[1762529159329,100.18179474,154.77,154.56,9.65119474]
[1762529159330,2.99,154.69,154.6,3.03]
[1762529159627,4.54220645,154.68,154.6,3.03]
[1762529160017,0.04883019,154.66,154.62,0.04820713]
[1762529160220,2.99,154.64,154.62,0.04820713]
[1762529160620,0.04883019,154.66,154.62,3.07820713]
[1762529161027,5.87273019,154.66,154.62,0.04820713]
[1762529161234,0.04883019,154.66,154.62,3.07820713]
[1762529161532,4.5327119,154.77,154.66,3.03]
[1762529161834,2.99,154.8,154.69,3.03]
[1762529162333,2.99,154.8,154.65,3.03]
[1762529162532,0.04783581,154.76,154.73,0.0431268]
[1762529162726,3.03783581,154.76,154.73,0.0431268]
[1762529163230,5.86803581,154.76,154.73,0.0431268]
[1762529163434,0.04783581,154.76,154.73,3.0731268]
[1762529163630,2.99,154.84,154.73,3.0731268]
[1762529163832,2.99,154.84,154.73,65.03]
[1762529164025,2.99,154.84,154.68,3.03]
[1762529164729,0.04972706,154.78,154.74,0.04424082]
[1762529164939,0.04972706,154.78,154.74,0.04415214]
[1762529165135,3.02972706,154.78,154.74,0.04415214]
[1762529165531,5.8202,154.76,154.74,0.04415214]
[1762529165937,5.86892706,154.78,154.74,0.04415214]
[1762529166139,5.86892706,154.78,154.74,3.29415214]
[1762529166338,0.04972706,154.78,154.74,0.04415214]
[1762529166538,3.02972706,154.78,154.74,0.04415214]
[1762529166745,0.04972706,154.78,154.74,0.04415214]
[1762529167045,0.04972706,154.78,154.75,3.25]
[1762529167338,2.98,154.86,154.75,3.25]
[1762529167540,5.8168,154.85,154.75,3.25]
[1762529167739,2.98,154.86,154.75,3.25]
[1762529167946,2.98,154.86,154.74,62.0]
[1762529168250,0.04894606,154.82,154.78,3.29119239]
[1762529169547,2.98,154.9,154.78,3.29119239]
[1762529169747,2.98,154.9,154.79,5.8184]
[1762529169748,8.7947,154.9,154.79,5.8184]
[1762529169953,8.7947,154.9,154.8,3.25]
[1762529170154,2.98,154.9,154.8,3.25]
[1762529170652,0.0454354,154.87,154.83,0.04744655]
[1762529170848,3.0254354,154.87,154.83,0.04744655]
[1762529171237,3.0254354,154.87,154.72,70.64]
[1762529171238,5.8186,154.8,154.71,3.25]
[1762529171642,2.98,154.81,154.71,3.25]
[1762529171946,12.63119474,154.81,154.66,3.25]
[1762529172244,0.04959529,154.75,154.72,3.2981908]
[1762529172441,0.04915797,154.75,154.72,3.29272551]
[1762529172642,2.98,154.85,154.72,3.29272551]
[1762529172945,2.98,154.85,154.73,3.25]
[1762529173243,83.25119474,154.89,154.73,3.25]
[1762529173445,12.63119474,154.89,154.77,3.25]
[1762529173646,0.04370806,154.85,154.81,0.04094176]
[1762529174348,3.02370806,154.85,154.81,0.04094176]
[1762529174949,0.04370806,154.85,154.81,0.04094176]
[1762529175444,2.98,154.95,154.81,3.29094176]
[1762529175650,2.98,154.95,154.81,3.25]
[1762529176051,5.8134,154.94,154.84,3.25]
[1762529176248,12.63119474,154.99,154.84,3.25]
[1762529176444,12.63119474,154.99,154.86,3.25]
[1762529176445,5.813,154.95,154.86,3.25]
[1762529176648,0.04197908,154.91,154.88,0.04608042]
[1762529176845,0.04713667,154.91,154.88,0.04363471]
[1762529177652,3.02713667,154.91,154.88,0.04363471]
[1762529177962,0.04713667,154.91,154.88,0.04363471]
[1762529178143,3.02713667,154.91,154.88,0.04363471]
[1762529178346,0.04713667,154.91,154.88,0.04363471]
[1762529179050,3.02713667,154.91,154.88,0.04363471]
[1762529179252,5.816,154.87,154.78,3.25]
[1762529179551,4.32713667,154.91,154.8,3.25]
[1762529179552,2.98,154.91,154.8,3.25]
[1762529180145,0.04437356,154.87,154.84,0.04367665]
[1762529180546,3.02437356,154.87,154.84,0.04367665]
[1762529180946,5.8162,154.86,154.84,0.04367665]
[1762529181147,2.98,154.85,154.84,0.04367665]
[1762529181557,5.8176,154.83,154.75,3.25]
[1762529181948,2.98,154.85,154.75,3.25]
[1762529182653,3.02138279,154.82,154.78,0.04406733]
[1762529182861,3.02862257,154.82,154.78,0.04406733]
[1762529183757,8.7987,154.8,154.78,0.04406733]
[1762529183959,3.02862257,154.82,154.78,0.04406733]
[1762529185357,0.04862257,154.82,154.78,3.29406733]
[1762529185951,0.04862257,154.82,154.78,0.04406733]
[1762529186558,0.04862257,154.82,154.78,3.29406733]
[1762529187156,5.6305123,154.92,154.78,3.29406733]
[1762529187356,2.98,154.93,154.79,5.6305123]
[1762529187557,2.98,154.97,154.83,3.25]
[1762529187961,2.98,154.97,154.87,3.25]
[1762529188260,1.12350482,155.02,154.9,0.04486144]
[1762529188261,0.0450964,154.94,154.9,0.04486144]
[1762529188461,2.98,155.01,154.9,3.29320719]
[1762529188660,0.04606695,154.94,154.9,3.25]
[1762529188856,0.04606695,154.94,154.9,3.29252887]
[1762529189260,0.04606695,154.94,154.9,0.04252887]
[1762529189464,5.8141,154.92,154.9,0.04252887]
[1762529189657,3.02606695,154.94,154.9,0.04252887]
[1762529190168,2.98,154.91,154.9,0.04252887]
[1762529190766,2.98,154.91,154.77,3.25]
[1762529190767,2.98,154.9,154.77,3.25]
[1762529190967,2.98,154.89,154.77,3.25]
[1762529191265,5.817,154.84,154.77,3.25]
[1762529191463,2.98,154.89,154.77,3.25]
[1762529191858,0.04568282,154.85,154.82,3.25]
[1762529192254,0.04568282,154.85,154.81,0.04441613]
[1762529192459,0.04568282,154.85,154.81,3.29441613]
[1762529193672,0.04568282,154.85,154.81,14.74282843]
[1762529193859,2.98,154.93,154.82,3.25]